[Event "7th Cesme Open-B 2019"]
[Site "Cesme"]
[Date "2019.06.26"]
[Round "5"]
[White "Gece, Ugur"]
[Black "Altundal, Arda"]
[Result "1/2-1/2"]
[ECO "C28"]
[WhiteElo "1688"]
[BlackElo "1707"]
[Annotator "NA"]
[PlyCount "42"]
[EventDate "2019.06.24"]
[EventType "swiss"]
[EventCountry "TUR"]
[SourceTitle "playchess.com"]
[Source "ChessBase"]
[SourceQuality "1"]
[TimeControl "5400+30"]

1. e4 {[%emt 0:00:30]} e5 {[%emt 0:00:30]} 2. Nc3 {[%emt 0:00:30]} Nc6 {[%emt 0:00:30]} 3. Bc4 {[%emt 0:00:00]} d6 {[%emt 0:00:00]} 4. d3 {[%emt 0:03:00]} Nf6 {[%emt 0:00:00]} 5. Nge2 {[%emt 0:00:00]} Be7 {[%emt 0:00:30]} 6. O-O {[%emt 0:00:00]} O-O {[%emt 0:00:30]} 7. f4 {[%emt 0:00:30]} a6 {[%emt 0:01:30]} 8. a3 {[%emt 0:03:30]} b5 {[%emt 0:02:30]} 9. Ba2 {[%emt 0:01:30]} Bb7 {[%emt 0:03:30]} 10. h3 {[%emt 0:03:30]} Nd4 {[%emt 0:02:30]} 11. Nxd4 {[%emt 0:04:30]} exd4 {[%emt 0:00:30]} 12. Ne2 {[%emt 0:00:30]} c5 {[%emt 0:00:30]} 13. g4 {[%emt 0:01:30]} Nd7 {[%emt 0:01:30]} 14. Ng3 {[%emt 0:01:30]} Nb6 {[%emt 0:01:30]} 15. f5 {[%emt 0:04:30]} Kh8 {[%emt 0:08:30]} 16. g5 {[%emt 0:11:30]} Bxg5 {[%emt 0:02:30]} 17. Qh5 {[%emt 0:03:30]} Bxc1 {[%emt 0:02:30]} 18. Raxc1 {[%emt 0:02:30]} Nd7 {[%emt 0:03:30]} 19. Rf4 {[%emt 0:02:30]} Nf6 {[%emt 0:05:30]} 20. Qg5 {[%emt 0:03:30]} h6 {[%emt 0:04:30]} 21. Qh4 {[%emt 0:00:00]} Ng8 {[%emt 0:17:30]} 1/2-1/2

[Event "7th Cesme Open-B 2019"]
[Site "Cesme"]
[Date "2019.06.26"]
[Round "5"]
[White "Ozen, Metehan"]
[Black "Ergani, Efe"]
[Result "1/2-1/2"]
[ECO "E06"]
[WhiteElo "1687"]
[BlackElo "1748"]
[Annotator "NA"]
[PlyCount "129"]
[EventDate "2019.06.24"]
[EventType "swiss"]
[EventCountry "TUR"]
[SourceTitle "playchess.com"]
[Source "ChessBase"]
[SourceQuality "1"]
[TimeControl "5400+30"]

1. Nf3 {[%emt 0:00:30]} Nf6 {[%emt 0:00:30]} 2. c4 {[%emt 0:00:00]} e6 {[%emt 0:01:30]} 3. g3 {[%emt 0:00:00]} d5 {[%emt 0:00:30]} 4. Bg2 {[%emt 0:03:30]} Be7 {[%emt 0:01:30]} 5. O-O {[%emt 0:01:30]} O-O {[%emt 0:00:00]} 6. d4 {[%emt 0:01:30]} c6 {[%emt 0:01:00]} 7. Nbd2 {[%emt 0:02:30]} b6 {[%emt 0:05:30]} 8. Qc2 {[%emt 0:05:30]} Bb7 {[%emt 0:03:30]} 9. Rd1 {[%emt 0:01:30]} Nbd7 {[%emt 0:08:30]} 10. b3 {[%emt 0:03:30]} c5 {[%emt 0:03:30]} 11. Bb2 {[%emt 0:01:30]} Rc8 {[%emt 0:03:30]} 12. a4 {[%emt 0:04:30]} Qc7 {[%emt 0:07:30]} 13. Rac1 {[%emt 0:02:30]} Qb8 {[%emt 0:06:30]} 14. Qb1 {[%emt 0:00:30]} cxd4 {[%emt 0:02:30]} 15. Nxd4 {[%emt 0:00:30]} Nc5 {[%emt 0:02:30]} 16. N4f3 {[%emt 0:04:30]} dxc4 {[%emt 0:05:30]} 17. Be5 {[%emt 0:00:30]} Qa8 {[%emt 0:01:30]} 18. Nxc4 {[%emt 0:00:30]} Bd5 {[%emt 0:02:30]} 19. Ne1 {[%emt 0:07:30]} Rfd8 {[%emt 0:03:30]} 20. Bxd5 {[%emt 0:00:30]} Rxd5 {[%emt 0:00:30]} 21. Rxd5 {[%emt 0:00:30]} Qxd5 {[%emt 0:06:30]} 22. Rd1 {[%emt 0:02:30]} Qe4 {[%emt 0:01:30]} 23. Qa2 {[%emt 0:02:30]} Qc6 {[%emt 0:09:30]} 24. Na3 {[%emt 0:01:30]} Ng4 {[%emt 0:00:30]} 25. Bb2 {[%emt 0:00:30]} Qe4 {[%emt 0:02:30]} 26. Bd4 {[%emt 0:01:30]} Qf5 {[%emt 0:03:14]} 27. f3 {[%emt 0:01:30]} Ne5 {[%emt 0:02:20]} 28. Bxe5 {[%emt 0:00:30]} Qxe5 {[%emt 0:00:17]} 29. Nc4 {[%emt 0:00:30]} Qc3 {[%emt 0:00:25]} 30. a5 {[%emt 0:03:30]} Nxb3 {[%emt 0:02:51]} 31. axb6 {[%emt 0:03:30]} Bc5+ {[%emt 0:05:30]} 32. Kf1 {[%emt 0:00:30]} axb6 {[%emt 0:02:16]} 33. Qa6 {[%emt 0:00:30]} Rf8 {[%emt 0:02:32]} 34. Rd3 {[%emt 0:01:30]} Qa1 {[%emt 0:00:01]} 35. Qxa1 {[%emt 0:02:30]} Nxa1 {[%emt 0:00:00]} 36. Rd1 {[%emt 0:00:00]} Ra8 {[%emt 0:00:56]} 37. Rb1 {[%emt 0:00:00]} Ra6 {[%emt 0:02:10]} 38. Nd3 {[%emt 0:01:30]} f6 {[%emt 0:00:43]} 39. Nxc5 {[%emt 0:00:30]} bxc5 {[%emt 0:00:30]} 40. Rb8+ {[%emt 0:00:00]} Kf7 {[%emt 0:00:16]} 41. Rc8 {[%emt 0:00:00]} Nb3 {[%emt 0:00:30]} 42. Rc7+ {[%emt 0:00:30]} Kg6 {[%emt 0:00:00]} 43. Nb2 {[%emt 0:03:30]} Ra1+ {[%emt 0:02:44]} 44. Kf2 {[%emt 0:00:00]} Rc1 {[%emt 0:00:19]} 45. Nd3 {[%emt 0:00:00]} Rc2 {[%emt 0:00:52]} 46. Ne1 {[%emt 0:01:30]} Rc3 {[%emt 0:00:20]} 47. Nd3 {[%emt 0:00:30]} Kh6 {[%emt 0:01:36]} 48. Rc6 {[%emt 0:00:30]} c4 {[%emt 0:00:29]} 49. Nb2 {[%emt 0:01:30]} Rc2 {[%emt 0:00:21]} 50. Nxc4 {[%emt 0:01:30]} Rxe2+ {[%emt 0:00:30]} 51. Kxe2 {[%emt 0:00:30]} Nd4+ {[%emt 0:00:00]} 52. Kd3 {[%emt 0:00:00]} Nxc6 {[%emt 0:00:00]} 53. Ne3 {[%emt 0:01:00]} Kg6 {[%emt 0:00:10]} 54. f4 {[%emt 0:00:30]} h5 {[%emt 0:01:11]} 55. Kc4 {[%emt 0:01:30]} Ne7 {[%emt 0:00:07]} 56. Kc5 {[%emt 0:00:30]} Nf5 {[%emt 0:00:41]} 57. Nf1 {[%emt 0:00:00]} Nh6 {[%emt 0:00:31]} 58. Kd4 {[%emt 0:01:00]} Nf7 {[%emt 0:00:43]} 59. Ne3 {[%emt 0:00:30]} Nd6 {[%emt 0:00:30]} 60. Kc5 {[%emt 0:00:30]} Ne4+ {[%emt 0:00:02]} 61. Kd4 {[%emt 0:00:00]} Nd2 {[%emt 0:00:13]} 62. Kd3 {[%emt 0:00:00]} Nf3 {[%emt 0:01:54]} 63. Nf1 {[%emt 0:00:30]} Ne1+ {[%emt 0:00:13]} 64. Kd2 {[%emt 0:00:30]} Nf3+ {[%emt 0:01:11]} 65. Ke3 {[%emt 0:00:00]} 1/2-1/2

[Event "7th Cesme Open-B 2019"]
[Site "Cesme"]
[Date "2019.06.26"]
[Round "5"]
[White "Kiray, Tuncer Efe"]
[Black "Acar, Cengiz Can"]
[Result "0-1"]
[ECO "B01"]
[WhiteElo "1601"]
[BlackElo "1741"]
[Annotator "NA"]
[PlyCount "104"]
[EventDate "2019.06.24"]
[EventType "swiss"]
[EventCountry "TUR"]
[SourceTitle "playchess.com"]
[Source "ChessBase"]
[SourceQuality "1"]
[TimeControl "5400+30"]

1. e4 {[%emt 0:00:30]} d5 {[%emt 0:01:30]} 2. exd5 {[%emt 0:00:00]} Qxd5 {[%emt 0:00:30]} 3. Nc3 {[%emt 0:00:00]} Qd6 {[%emt 0:00:30]} 4. d4 {[%emt 0:00:30]} c6 {[%emt 0:00:30]} 5. Nf3 {[%emt 0:00:30]} Bg4 {[%emt 0:00:30]} 6. Be2 {[%emt 0:00:30]} Nd7 {[%emt 0:00:30]} 7. Be3 {[%emt 0:00:30]} Ngf6 {[%emt 0:00:30]} 8. Qd2 {[%emt 0:00:30]} e6 {[%emt 0:00:00]} 9. O-O-O {[%emt 0:00:00]} Qc7 {[%emt 0:04:00]} 10. h3 {[%emt 0:04:00]} Bh5 {[%emt 0:02:30]} 11. g4 {[%emt 0:00:30]} Bg6 {[%emt 0:00:30]} 12. Nh4 {[%emt 0:00:00]} Bb4 {[%emt 0:00:30]} 13. Nxg6 {[%emt 0:00:00]} hxg6 {[%emt 0:00:30]} 14. Qd3 {[%emt 0:00:30]} Qa5 {[%emt 0:19:30]} 15. Kb1 {[%emt 0:06:30]} O-O-O {[%emt 0:06:30]} 16. Bd2 {[%emt 0:05:30]} Nd5 {[%emt 0:09:30]} 17. Ne4 {[%emt 0:03:30]} Bxd2 {[%emt 0:01:30]} 18. Nxd2 {[%emt 0:01:30]} Nf4 {[%emt 0:04:30]} 19. Qf3 {[%emt 0:00:30]} Nxe2 {[%emt 0:06:30]} 20. Qxe2 {[%emt 0:00:30]} Nf6 {[%emt 0:00:00]} 21. c3 {[%emt 0:00:30]} Nd5 {[%emt 0:03:00]} 22. Qe5 {[%emt 0:02:30]} Qb6 {[%emt 0:04:30]} 23. Nb3 {[%emt 0:02:30]} Rh7 {[%emt 0:06:30]} 24. h4 {[%emt 0:02:30]} Qc7 {[%emt 0:07:30]} 25. Qg5 {[%emt 0:08:30]} Rdh8 {[%emt 0:01:00]} 26. h5 {[%emt 0:01:30]} Qf4 {[%emt 0:00:41]} 27. Qxf4 {[%emt 0:00:30]} Nxf4 {[%emt 0:00:30]} 28. Nc5 {[%emt 0:00:30]} gxh5 {[%emt 0:01:30]} 29. gxh5 {[%emt 0:00:30]} Rxh5 {[%emt 0:00:06]} 30. Rhg1 {[%emt 0:00:00]} g6 {[%emt 0:04:38]} 31. Nd3 {[%emt 0:01:00]} Nxd3 {[%emt 0:01:44]} 32. Rxd3 {[%emt 0:00:30]} Rf5 {[%emt 0:00:00]} 33. Rg2 {[%emt 0:00:00]} Kd7 {[%emt 0:04:43]} 34. Kc2 {[%emt 0:00:00]} Rh1 {[%emt 0:01:08]} 35. Re3 {[%emt 0:00:30]} Ke7 {[%emt 0:01:28]} 36. a3 {[%emt 0:04:30]} Kf6 {[%emt 0:01:17]} 37. Kd2 {[%emt 0:07:30]} g5 {[%emt 0:01:55]} 38. Kc2 {[%emt 0:00:30]} Rf1 {[%emt 0:02:27]} 39. Re2 {[%emt 0:00:30]} Rf4 {[%emt 0:01:16]} 40. Kd2 {[%emt 0:02:30]} Kg6 {[%emt 0:00:12]} 41. Ke3 {[%emt 0:00:00]} Kf5 {[%emt 0:01:25]} 42. Kd3 {[%emt 0:01:00]} f6 {[%emt 0:00:14]} 43. Kd2 {[%emt 0:00:30]} Rf3 {[%emt 0:00:42]} 44. Kc2 {[%emt 0:00:30]} g4 {[%emt 0:00:20]} 45. Rh2 {[%emt 0:00:30]} Kf4 {[%emt 0:00:28]} 46. Kd2 {[%emt 0:01:30]} f5 {[%emt 0:01:50]} 47. Kc2 {[%emt 0:00:00]} Kg5 {[%emt 0:00:57]} 48. Kb3 {[%emt 0:00:00]} Rh3 {[%emt 0:00:17]} 49. Rg2 {[%emt 0:00:30]} Rf3 {[%emt 0:01:16]} 50. Rh2 {[%emt 0:00:00]} Rh3 {[%emt 0:00:09]} 51. Rg2 {[%emt 0:00:00]} f4 {[%emt 0:00:10]} 52. Rxe6 {[%emt 0:00:30]} f3 {[%emt 0:00:24]} 0-1

[Event "7th Cesme Open-B 2019"]
[Site "Cesme"]
[Date "2019.06.27"]
[Round "6"]
[White "Ozcan, Kadir Kutay"]
[Black "Cil, Batuhan"]
[Result "1/2-1/2"]
[ECO "B78"]
[WhiteElo "1820"]
[BlackElo "1740"]
[Annotator "NA RC"]
[PlyCount "97"]
[EventDate "2019.06.24"]
[EventType "swiss"]
[EventCountry "TUR"]
[SourceTitle "playchess.com"]
[Source "ChessBase"]
[SourceQuality "1"]
[TimeControl "5400+30"]

1. e4 {[%emt 0:05:30]} c5 {[%emt 0:00:30]} 2. Nc3 {[%emt 0:00:30]} Nc6 {[%emt 0:01:30]} 3. Nf3 {[%emt 0:00:30]} g6 {[%emt 0:01:30]} 4. d4 {[%emt 0:01:30]} cxd4 {[%emt 0:00:30]} 5. Nxd4 {[%emt 0:00:30]} Bg7 {[%emt 0:00:00]} 6. Be3 {[%emt 0:00:00]} Nf6 {[%emt 0:02:00]} 7. Bc4 {[%emt 0:01:00]} d6 {[%emt 0:00:30]} 8. f3 {[%emt 0:00:30]} Bd7 {[%emt 0:01:30]} 9. Qd2 {[%emt 0:00:30]} Rc8 {[%emt 0:02:30]} 10. Bb3 {[%emt 0:00:30]} O-O {[%emt 0:03:30]} 11. O-O-O {[%emt 0:00:30]} Na5 {[%emt 0:01:30]} 12. h4 {[%emt 0:00:30]} Nc4 {[%emt 0:06:30]} 13. Bxc4 {[%emt 0:00:30]} Rxc4 {[%emt 0:00:00]} 14. Nb3 {[%emt 0:00:30]} b5 {[%emt 0:17:00]} 15. Bh6 {[%emt 0:01:30]} b4 {[%emt 0:02:30]} 16. Bxg7 {[%emt 0:00:30]} Kxg7 {[%emt 0:02:30]} 17. Ne2 {[%emt 0:01:30]} h5 {[%emt 0:17:30]} 18. g4 {[%emt 0:04:30]} Qc7 {[%emt 0:04:30]} 19. g5 {[%emt 0:13:30]} Nh7 {[%emt 0:00:30]} 20. Kb1 {[%emt 0:00:30]} Rc8 {[%emt 0:04:30]} 21. Rc1 {[%emt 0:03:30]} Nf8 {[%emt 0:02:30]} 22. Nf4 {[%emt 0:02:30]} Be6 {[%emt 0:00:00]} 23. Nd4 {[%emt 0:01:30]} Qc5 {[%emt 0:08:30]} 24. Ndxe6+ {[%emt 0:02:30]} Nxe6 {[%emt 0:00:18]} 25. Nxe6+ {[%emt 0:01:30]} fxe6 {[%emt 0:00:12]} 26. Rhe1 {[%emt 0:01:30]} Qd4 {[%emt 0:04:41]} 27. Qxd4+ {[%emt 0:01:30]} Rxd4 {[%emt 0:00:30]} 28. Rcd1 {[%emt 0:00:30]} Rxd1+ {[%emt 0:00:55]} 29. Rxd1 {[%emt 0:00:30]} Rf8 {[%emt 0:00:17]} 30. Rd3 {[%emt 0:01:30]} Rf4 {[%emt 0:00:28]} 31. a3 {[%emt 0:00:30]} a5 {[%emt 0:01:26]} 32. axb4 {[%emt 0:00:30]} axb4 {[%emt 0:00:00]} 33. Rb3 {[%emt 0:00:30]} Rxh4 {[%emt 0:00:23]} 34. Rxb4 {[%emt 0:00:30]} Rf4 {[%emt 0:08:30]} 35. Rb3 {[%emt 0:01:30]} h4 {[%emt 0:00:39]} 36. Re3 {[%emt 0:00:00]} h3 {[%emt 0:00:30]} 37. Re2 {[%emt 0:00:00]} Rxf3 {[%emt 0:00:30]} 38. b4 {[%emt 0:00:30]} Rg3 {[%emt 0:00:13]} 39. Rh2 {[%emt 0:00:30]} Kf8 {[%emt 0:05:04]} 40. Kb2 {[%emt 0:00:30]} Ke8 {[%emt 0:00:16]} 41. Rh1 {[%emt 0:00:30]} d5 {[%emt 0:00:50]} 42. exd5 {[%emt 0:00:30]} exd5 {[%emt 0:00:02]} 43. c3 {[%emt 0:00:00]} Kd7 {[%emt 0:00:45]} 44. Kb3 {[%emt 0:02:00]} e5 {[%emt 0:01:09]} 45. Rh2 {[%emt 0:02:30]} d4 {[%emt 0:00:54]} 46. Kc4 {[%emt 0:00:30]} Rxc3+ {[%emt 0:01:03]} 47. Kd5 {[%emt 0:00:30]} d3 {[%emt 0:01:23]} 48. Kxe5 {[%emt 0:00:30]} Ke7 {[%emt 0:00:19]} 49. Ke4 {[%emt 0:03:30]} 1/2-1/2

[Event "7th Cesme Open-B 2019"]
[Site "Cesme"]
[Date "2019.06.27"]
[Round "6"]
[White "Ergani, Efe"]
[Black "Algunerhan, Siar"]
[Result "0-1"]
[ECO "C24"]
[WhiteElo "1748"]
[BlackElo "1770"]
[Annotator "NA RC"]
[PlyCount "100"]
[EventDate "2019.06.24"]
[EventType "swiss"]
[EventCountry "TUR"]
[SourceTitle "playchess.com"]
[Source "ChessBase"]
[SourceQuality "1"]
[TimeControl "5400+30"]

1. e4 {[%emt 0:00:30]} e5 {[%emt 0:00:30]} 2. Bc4 {[%emt 0:00:00]} Nf6 {[%emt 0:00:30]} 3. d4 {[%emt 0:01:00]} exd4 {[%emt 0:00:30]} 4. Nf3 {[%emt 0:00:30]} Bb4+ {[%emt 0:07:30]} 5. c3 {[%emt 0:01:30]} dxc3 {[%emt 0:00:30]} 6. bxc3 {[%emt 0:00:30]} Bc5 {[%emt 0:03:30]} 7. e5 {[%emt 0:02:30]} d5 {[%emt 0:00:30]} 8. exf6 {[%emt 0:02:30]} dxc4 {[%emt 0:00:30]} 9. Qa4+ {[%emt 0:09:30]} Kf8 {[%emt 0:05:30]} 10. fxg7+ {[%emt 0:01:30]} Kxg7 {[%emt 0:00:30]} 11. O-O {[%emt 0:00:00]} Be6 {[%emt 0:02:30]} 12. Bf4 {[%emt 0:06:00]} Nc6 {[%emt 0:04:30]} 13. Qb5 {[%emt 0:03:30]} Qd5 {[%emt 0:02:30]} 14. Qb2 {[%emt 0:01:30]} Rhg8 {[%emt 0:03:30]} 15. Qd2 {[%emt 0:00:30]} Kh8 {[%emt 0:00:30]} 16. Qxd5 {[%emt 0:01:30]} Bxd5 {[%emt 0:00:30]} 17. Nbd2 {[%emt 0:00:00]} Bd6 {[%emt 0:02:30]} 18. Bxd6 {[%emt 0:05:00]} cxd6 {[%emt 0:00:30]} 19. Rfb1 {[%emt 0:03:30]} Ne5 {[%emt 0:01:30]} 20. Kf1 {[%emt 0:02:30]} Nxf3 {[%emt 0:01:30]} 21. Nxf3 {[%emt 0:00:30]} Bxf3 {[%emt 0:00:30]} 22. gxf3 {[%emt 0:00:30]} b6 {[%emt 0:00:30]} 23. Rd1 {[%emt 0:00:30]} Rg6 {[%emt 0:00:30]} 24. Rd4 {[%emt 0:01:30]} Rc8 {[%emt 0:01:30]} 25. Re1 {[%emt 0:00:30]} Rc7 {[%emt 0:03:30]} 26. Re8+ {[%emt 0:01:30]} Kg7 {[%emt 0:00:30]} 27. Rd8 {[%emt 0:00:00]} Rc6 {[%emt 0:00:30]} 28. Rd7 {[%emt 0:03:00]} a6 {[%emt 0:02:30]} 29. h4 {[%emt 0:01:30]} Rf6 {[%emt 0:03:30]} 30. Ke2 {[%emt 0:02:30]} b5 {[%emt 0:01:30]} 31. Rb7 {[%emt 0:04:30]} Kf8 {[%emt 0:03:30]} 32. Ke3 {[%emt 0:01:30]} h5 {[%emt 0:03:30]} 33. Rb8+ {[%emt 0:10:30]} Ke7 {[%emt 0:02:30]} 34. a3 {[%emt 0:01:30]} Kd7 {[%emt 0:01:30]} 35. Rh8 {[%emt 0:00:30]} Rf5 {[%emt 0:09:30]} 36. f4 {[%emt 0:04:30]} d5 {[%emt 0:00:30]} 37. f3 {[%emt 0:01:30]} Kc7 {[%emt 0:01:30]} 38. Ra8 {[%emt 0:02:30]} Re6+ {[%emt 0:02:30]} 39. Kf2 {[%emt 0:00:30]} Ref6 {[%emt 0:00:30]} 40. Ke3 {[%emt 0:00:30]} Kb6 {[%emt 0:00:30]} 41. Rd8 {[%emt 0:00:30]} Ka5 {[%emt 0:00:30]} 42. R8xd5 {[%emt 0:06:30]} Ka4 {[%emt 0:00:30]} 43. Rxf5 {[%emt 0:00:46]} Rxf5 {[%emt 0:00:30]} 44. Rd1 {[%emt 0:03:53]} Kxa3 {[%emt 0:01:30]} 45. Ke4 {[%emt 0:04:26]} Rf6 {[%emt 0:00:30]} 46. Ke5 {[%emt 0:00:16]} Re6+ {[%emt 0:01:30]} 47. Kd5 {[%emt 0:00:09]} Kb2 {[%emt 0:00:30]} 48. f5 {[%emt 0:00:31]} Re3 {[%emt 0:00:00]} 49. Rd2+ {[%emt 0:00:25]} Kb3 {[%emt 0:01:00]} 50. Kc5 {[%emt 0:00:30]} Rxf3 {[%emt 0:00:30]} 0-1

[Event "7th Cesme Open-B 2019"]
[Site "Cesme"]
[Date "2019.06.27"]
[Round "6"]
[White "Acar, Cengiz Can"]
[Black "Altundal, Arda"]
[Result "1/2-1/2"]
[ECO "D37"]
[WhiteElo "1741"]
[BlackElo "1707"]
[Annotator "NA RC"]
[PlyCount "92"]
[EventDate "2019.06.24"]
[EventType "swiss"]
[EventCountry "TUR"]
[SourceTitle "playchess.com"]
[Source "ChessBase"]
[SourceQuality "1"]
[TimeControl "5400+30"]

1. d4 {[%emt 0:05:30]} Nf6 {[%emt 0:01:30]} 2. Bf4 {[%emt 0:00:30]} e6 {[%emt 0:00:30]} 3. Nf3 {[%emt 0:00:30]} d5 {[%emt 0:01:30]} 4. e3 {[%emt 0:02:30]} c6 {[%emt 0:08:30]} 5. c4 {[%emt 0:11:30]} Be7 {[%emt 0:02:30]} 6. Nc3 {[%emt 0:02:30]} O-O {[%emt 0:01:30]} 7. Bd3 {[%emt 0:03:30]} Nbd7 {[%emt 0:05:30]} 8. h3 {[%emt 0:01:30]} a6 {[%emt 0:05:30]} 9. O-O {[%emt 0:04:30]} dxc4 {[%emt 0:06:30]} 10. Bxc4 {[%emt 0:00:30]} Nd5 {[%emt 0:01:30]} 11. Bg3 {[%emt 0:06:30]} b5 {[%emt 0:02:30]} 12. Bb3 {[%emt 0:01:30]} Nxc3 {[%emt 0:05:30]} 13. bxc3 {[%emt 0:00:30]} Bb7 {[%emt 0:09:30]} 14. c4 {[%emt 0:18:30]} c5 {[%emt 0:07:30]} 15. Ne5 {[%emt 0:05:30]} Nxe5 {[%emt 0:05:30]} 16. Bxe5 {[%emt 0:01:30]} Bd6 {[%emt 0:12:53]} 17. Bxd6 {[%emt 0:07:30]} Qxd6 {[%emt 0:00:07]} 18. dxc5 {[%emt 0:00:30]} Qxc5 {[%emt 0:01:23]} 19. cxb5 {[%emt 0:00:30]} Rfd8 {[%emt 0:08:57]} 20. Qg4 {[%emt 0:01:30]} axb5 {[%emt 0:00:40]} 21. Rac1 {[%emt 0:02:30]} Qb6 {[%emt 0:00:34]} 22. Qb4 {[%emt 0:05:15]} Qa5 {[%emt 0:07:21]} 23. Qe7 {[%emt 0:00:22]} Bd5 {[%emt 0:01:32]} 24. Rc7 {[%emt 0:01:42]} Rf8 {[%emt 0:00:09]} 25. Rd1 {[%emt 0:11:07]} Bxb3 {[%emt 0:00:59]} 26. axb3 {[%emt 0:00:01]} Qa3 {[%emt 0:00:00]} 27. b4 {[%emt 0:00:19]} Rae8 {[%emt 0:01:35]} 28. Qc5 {[%emt 0:00:34]} Qa4 {[%emt 0:01:00]} 29. Rdd7 {[%emt 0:00:40]} Qa1+ {[%emt 0:00:44]} 30. Kh2 {[%emt 0:00:36]} Qf1 {[%emt 0:00:12]} 31. Qc2 {[%emt 0:01:40]} Qa1 {[%emt 0:00:35]} 32. Qd3 {[%emt 0:01:50]} Qe5+ {[%emt 0:00:21]} 33. g3 {[%emt 0:01:39]} Qb2 {[%emt 0:00:14]} 34. Qd2 {[%emt 0:00:10]} Qxd2 {[%emt 0:01:51]} 35. Rxd2 {[%emt 0:00:30]} Rb8 {[%emt 0:00:04]} 36. Rc5 {[%emt 0:00:57]} Rfc8 {[%emt 0:00:30]} 37. Rdc2 {[%emt 0:00:00]} Rxc5 {[%emt 0:00:23]} 38. Rxc5 {[%emt 0:00:32]} Kf8 {[%emt 0:00:11]} 39. Kg2 {[%emt 0:00:04]} Ke7 {[%emt 0:00:18]} 40. Kf3 {[%emt 0:00:16]} Kd6 {[%emt 0:00:18]} 41. Rg5 {[%emt 0:00:25]} g6 {[%emt 0:00:49]} 42. Rc5 {[%emt 0:00:00]} f6 {[%emt 0:00:00]} 43. Kf4 {[%emt 0:01:05]} e5+ {[%emt 0:00:44]} 44. Kg4 {[%emt 0:00:11]} h5+ {[%emt 0:01:03]} 45. Kf3 {[%emt 0:00:01]} f5 {[%emt 0:00:56]} 46. e4 {[%emt 0:02:11]} Rb7 {[%emt 0:00:01]} 1/2-1/2

[Event "7th Cesme Open-B 2019"]
[Site "Cesme"]
[Date "2019.06.27"]
[Round "6"]
[White "Gece, Ugur"]
[Black "Aydin, Akin"]
[Result "0-1"]
[ECO "C01"]
[WhiteElo "1688"]
[BlackElo "1726"]
[Annotator "NA RC"]
[PlyCount "62"]
[EventDate "2019.06.24"]
[EventType "swiss"]
[EventCountry "TUR"]
[SourceTitle "playchess.com"]
[Source "ChessBase"]
[SourceQuality "1"]
[TimeControl "5400+30"]

1. e4 {[%emt 0:00:30]} e6 {[%emt 0:00:30]} 2. d4 {[%emt 0:00:30]} d5 {[%emt 0:00:00]} 3. exd5 {[%emt 0:00:30]} exd5 {[%emt 0:00:00]} 4. Nc3 {[%emt 0:00:00]} Bb4 {[%emt 0:01:30]} 5. Bd3 {[%emt 0:06:00]} c6 {[%emt 0:00:00]} 6. Nge2 {[%emt 0:00:30]} Nf6 {[%emt 0:00:00]} 7. Bg5 {[%emt 0:01:30]} h6 {[%emt 0:01:30]} 8. Bh4 {[%emt 0:00:30]} O-O {[%emt 0:00:30]} 9. Qd2 {[%emt 0:01:30]} Na6 {[%emt 0:01:30]} 10. O-O-O {[%emt 0:04:30]} Bd6 {[%emt 0:00:30]} 11. f3 {[%emt 0:02:30]} Nb4 {[%emt 0:00:30]} 12. g4 {[%emt 0:00:30]} Nxd3+ {[%emt 0:06:30]} 13. Qxd3 {[%emt 0:01:30]} Re8 {[%emt 0:00:30]} 14. Rdg1 {[%emt 0:06:30]} Qc7 {[%emt 0:20:30]} 15. Bg3 {[%emt 0:15:30]} Nd7 {[%emt 0:13:30]} 16. g5 {[%emt 0:15:30]} h5 {[%emt 0:07:30]} 17. g6 {[%emt 0:01:30]} Rf8 {[%emt 0:17:30]} 18. gxf7+ {[%emt 0:05:30]} Rxf7 {[%emt 0:00:00]} 19. Qg6 {[%emt 0:02:30]} Nf6 {[%emt 0:00:00]} 20. Bh4 {[%emt 0:03:30]} Qe7 {[%emt 0:05:30]} 21. Qh6 {[%emt 0:04:30]} Bg4 {[%emt 0:01:30]} 22. Rxg4 {[%emt 0:19:33]} hxg4 {[%emt 0:01:39]} 23. Qg6 {[%emt 0:00:47]} Qe3+ {[%emt 0:03:32]} 24. Kb1 {[%emt 0:00:24]} Qxf3 {[%emt 0:00:05]} 25. Rg1 {[%emt 0:00:39]} Re8 {[%emt 0:04:34]} 26. Bg3 {[%emt 0:02:10]} Bxg3 {[%emt 0:03:23]} 27. Nxg3 {[%emt 0:00:30]} Qf2 {[%emt 0:00:30]} 28. Rd1 {[%emt 0:00:29]} Re1 {[%emt 0:01:40]} 29. Nf5 {[%emt 0:00:30]} Rxd1+ {[%emt 0:00:30]} 30. Nxd1 {[%emt 0:00:00]} Qd2 {[%emt 0:00:39]} 31. Nfe3 {[%emt 0:00:34]} Re7 {[%emt 0:00:26]} 0-1

[Event "7th Cesme Open-B 2019"]
[Site "Cesme"]
[Date "2019.06.28"]
[Round "7"]
[White "Algunerhan, Siar"]
[Black "Ozcan, Kadir Kutay"]
[Result "1-0"]
[ECO "B77"]
[WhiteElo "1770"]
[BlackElo "1820"]
[Annotator "NA"]
[PlyCount "73"]
[EventDate "2019.06.24"]
[EventType "swiss"]
[EventCountry "TUR"]
[SourceTitle "playchess.com"]
[Source "ChessBase"]
[SourceQuality "1"]
[TimeControl "5400+30"]

1. e4 {[%emt 0:00:30]} c5 {[%emt 0:05:30]} 2. Nf3 {[%emt 0:00:30]} d6 {[%emt 0:00:00]} 3. d4 {[%emt 0:00:30]} cxd4 {[%emt 0:00:00]} 4. Nxd4 {[%emt 0:00:30]} Nf6 {[%emt 0:00:30]} 5. Nc3 {[%emt 0:00:30]} g6 {[%emt 0:00:30]} 6. Be3 {[%emt 0:00:30]} Bg7 {[%emt 0:00:30]} 7. f3 {[%emt 0:00:30]} Nc6 {[%emt 0:00:30]} 8. Bc4 {[%emt 0:00:30]} O-O {[%emt 0:00:30]} 9. Qd2 {[%emt 0:00:00]} Nd7 {[%emt 0:00:00]} 10. O-O-O {[%emt 0:02:00]} Nb6 {[%emt 0:01:00]} 11. Bb3 {[%emt 0:00:30]} Na5 {[%emt 0:01:30]} 12. Qe2 {[%emt 0:08:30]} Nxb3+ {[%emt 0:01:30]} 13. axb3 {[%emt 0:00:30]} a5 {[%emt 0:00:30]} 14. h4 {[%emt 0:05:30]} a4 {[%emt 0:00:00]} 15. h5 {[%emt 0:01:30]} axb3 {[%emt 0:00:00]} 16. cxb3 {[%emt 0:00:00]} Ra1+ {[%emt 0:03:30]} 17. Kc2 {[%emt 0:01:00]} Rxd1 {[%emt 0:00:00]} 18. Qxd1 {[%emt 0:00:30]} f5 {[%emt 0:50:00]} 19. hxg6 {[%emt 0:08:30]} hxg6 {[%emt 0:00:00]} 20. Nde2 {[%emt 0:08:30]} e5 {[%emt 0:03:00]} 21. Qd3 Qc7 {[%emt 0:10:30]} 22. Kb1 {[%emt 0:13:00]} Bd7 {[%emt 0:04:05]} 23. Rc1 {[%emt 0:01:30]} Nc8 {[%emt 0:01:29]} 24. Nd5 {[%emt 0:01:30]} Qd8 {[%emt 0:01:58]} 25. Rc7 {[%emt 0:01:30]} b5 {[%emt 0:05:18]} 26. Nec3 {[%emt 0:04:30]} b4 {[%emt 0:00:18]} 27. Na4 {[%emt 0:01:30]} Rf7 {[%emt 0:05:16]} 28. Rb7 {[%emt 0:05:30]} fxe4 {[%emt 0:01:11]} 29. fxe4 {[%emt 0:00:30]} Bxa4 {[%emt 0:01:50]} 30. Rxf7 {[%emt 0:00:00]} Kxf7 31. bxa4 {[%emt 0:00:00]} Qh4 {[%emt 0:00:23]} 32. Qb3 {[%emt 0:02:30]} Qxe4+ {[%emt 0:00:16]} 33. Ka2 {[%emt 0:00:00]} Qg4 {[%emt 0:02:23]} 34. Nc7+ {[%emt 0:03:00]} Ke7 {[%emt 0:00:45]} 35. Qg8 {[%emt 0:00:30]} Bf8 {[%emt 0:01:35]} 36. Nd5+ {[%emt 0:00:00]} Kd7 {[%emt 0:00:15]} 37. Nf6+ {[%emt 0:00:00]} 1-0